bitfinex/quotes_SOLUSD_20250915
["timestamp","ask_amount","ask_price","bid_price","bid_amount"]
[1757952979225,0.82,233.89,233.87,34.74]
[1757952979419,0.13,233.89,233.87,35.44]
[1757952979607,0.13,233.89,233.88,0.7]
[1757952980319,0.13,233.89,233.87,39.01579684]
[1757952981830,0.13,233.89,233.88,0.7]
[1757952982128,0.13,233.89,233.88,5.00217188]
[1757952982925,0.13,233.89,233.88,9.27786881]
[1757952983127,0.13,233.89,233.88,8.57786881]
[1757952983837,0.13,233.89,233.88,6.04649199]
[1757952984009,0.82,233.89,233.87,0.06]
[1757952984207,0.69,233.88,233.87,0.06]
[1757952985116,4.96569693,233.88,233.87,0.06]
[1757952986018,0.69,233.88,233.87,0.06]
[1757952986224,4.96569693,233.88,233.87,0.06]
[1757952987744,4.96569693,233.88,233.86,0.2]
[1757952987745,13.59559401,233.87,233.86,1e-08]
[1757952987927,16.78456265,233.87,233.86,1e-08]
[1757952988128,17.47456265,233.87,233.86,1e-08]
[1757952988344,52.03456265,233.87,233.86,1e-08]
[1757952988720,35.25,233.87,233.86,1e-08]
[1757952988915,39.52587976,233.87,233.86,1e-08]
[1757952989630,4.96587976,233.87,233.86,1e-08]
[1757952990149,39.52587976,233.87,233.86,1e-08]
[1757952990318,13.59559401,233.86,233.7,41.60710109]
[1757952990518,26.0,233.83,233.7,37.32821736]
[1757952990720,38.43857269,233.82,233.7,34.56]
[1757952990921,0.69,233.81,233.69,2.76821736]
[1757952991139,0.69,233.8,233.74,2.76821736]
[1757952991444,4.27686243,233.82,233.74,2.76821736]
[1757952991657,4.96686243,233.82,233.76,2.76821736]
[1757952991862,35.25,233.84,233.77,2.76821736]
[1757952992027,0.69,233.82,233.75,2.76821736]
[1757952992222,0.69,233.81,233.75,2.76821736]
[1757952992620,34.56,233.83,233.72,0.67]
[1757952992850,0.69,233.82,233.73,2.76821736]
[1757952993021,4.27715996,233.8,233.73,2.76821736]
[1757952993221,0.69,233.79,233.73,2.76821736]
[1757952993651,0.69,233.79,233.72,2.76821736]
[1757952994447,4.27752587,233.78,233.72,2.76821736]
[1757952994634,0.69,233.82,233.73,0.67]
[1757952994841,0.69,233.81,233.71,0.67]
[1757952995041,0.69,233.81,233.74,2.76821736]
[1757952995242,34.56,233.83,233.77,2.76821736]
[1757952995940,34.56,233.83,233.75,0.67]
[1757952996132,0.69,233.82,233.76,2.76821736]
[1757952996344,0.69,233.82,233.75,2.76821736]
[1757952996538,4.27697703,233.81,233.75,2.76821736]
[1757952997256,0.03,233.84,233.8,2.76821736]
[1757952997570,0.03,233.84,233.79,2.76821736]
[1757952997740,0.69,233.83,233.78,2.76821736]
[1757952997923,0.03,233.84,233.79,0.67]
[1757952998128,0.69,233.83,233.77,2.76821736]
[1757952998645,0.03,233.84,233.78,7.04574323]
[1757952998958,4.30644953,233.84,233.78,7.04574323]
[1757952999129,4.30644953,233.84,233.78,4.27752587]
[1757952999445,4.30644953,233.84,233.78,2.76821736]
[1757952999643,4.30644953,233.84,233.77,0.67]
[1757953000150,4.30644953,233.84,233.78,2.76821736]
[1757953000352,0.03,233.84,233.78,2.76821736]
[1757953000850,0.03,233.84,233.79,2.76821736]
[1757953001049,0.03,233.84,233.79,3.43821736]
[1757953001356,0.69,233.83,233.73,0.67]
[1757953001532,26.69,233.83,233.72,0.06]
[1757953001857,26.0,233.82,233.72,0.06]
[1757953002244,13.59559401,233.8,233.72,0.06]
[1757953002751,50.22070019,233.79,233.72,0.06]
[1757953003631,34.58,233.78,233.72,0.06]
[1757953004051,35.25,233.77,233.72,0.06]
[1757953004462,0.69,233.77,233.72,0.06]
[1757953004654,4.27807486,233.75,233.72,0.06]
[1757953004844,0.69,233.74,233.72,0.06]
[1757953005244,0.69,233.73,233.72,0.06]
[1757953006159,34.58,233.82,233.72,18.47340133]
[1757953006339,0.69,233.83,233.79,2.76821736]
[1757953006543,0.03,233.84,233.79,3.43821736]
[1757953006744,0.69,233.83,233.79,2.76821736]
[1757953007753,0.03,233.84,233.8,2.76821736]
[1757953007958,0.72,233.84,233.8,2.76821736]
[1757953008265,0.69,233.83,233.75,0.67]
[1757953008763,0.69,233.83,233.77,2.76821736]
[1757953009155,4.27679411,233.82,233.77,2.76821736]
[1757953009363,0.69,233.81,233.72,5.00862027]
[1757953009664,0.69,233.8,233.73,2.76821736]
[1757953009851,0.69,233.8,233.73,6.36986987]
[1757953010167,4.27679411,233.82,233.75,6.36986987]
[1757953010463,4.96679411,233.82,233.76,6.36986987]
[1757953010665,0.69,233.82,233.78,6.36986987]
[1757953010862,0.69,233.81,233.77,6.36986987]
[1757953011067,0.69,233.81,233.76,6.36986987]
[1757953011269,4.4,233.8,233.76,6.36986987]
[1757953012456,0.69,233.79,233.75,6.36986987]
[1757953012663,0.69,233.79,233.73,6.36986987]
[1757953013157,0.69,233.79,233.72,4.33861001]
[1757953013158,0.69,233.79,233.72,6.42986987]
[1757953013471,34.58,233.82,233.72,0.06]
[1757953013472,15.63134056,233.78,233.72,0.06]
[1757953015569,13.59559401,233.77,233.72,0.06]
[1757953015769,13.59559401,233.75,233.72,0.06]
[1757953016269,0.66,233.74,233.72,0.06]
[1757953016763,4.93844093,233.73,233.72,0.06]
[1757953018368,0.66,233.73,233.72,0.06]
[1757953018564,38.85844093,233.73,233.72,0.06]
[1757953018864,39.51844093,233.73,233.72,0.06]
[1757953019067,1.71508201,233.8,233.72,0.76]
[1757953019253,1.71508201,233.8,233.73,6.36986987]
[1757953019453,6.65226655,233.8,233.72,11.40846813]
[1757953019653,4.93718454,233.8,233.72,5.03859826]
[1757953020167,15.63008445,233.8,233.72,0.76]
[1757953020672,13.59559401,233.77,233.72,0.06]
[1757953020869,34.58,233.76,233.72,0.06]
[1757953021055,34.58,233.75,233.72,0.06]
[1757953021251,3.3,233.74,233.72,0.06]
[1757953021456,3.96,233.74,233.72,0.06]
[1757953021656,0.66,233.73,233.72,0.06]
[1757953022669,4.93844093,233.73,233.72,0.06]
[1757953023658,39.51844093,233.73,233.72,0.06]
[1757953023859,38.85844093,233.73,233.72,0.06]
[1757953024664,56.32127278,233.73,233.72,0.06]
[1757953025081,39.59559401,233.7,233.69,0.06]
[1757953025379,42.78268026,233.7,233.69,0.06]
[1757953025583,43.46268026,233.7,233.69,0.06]
[1757953025982,43.46268026,233.7,233.69,1e-08]
[1757953026559,78.04268026,233.7,233.69,1e-08]
[1757953026776,82.32167041,233.7,233.69,1e-08]
[1757953026978,47.74167041,233.7,233.69,1e-08]
[1757953027159,78.45458416,233.7,233.69,1e-08]
[1757953027364,4.27899015,233.7,233.69,1e-08]
[1757953027566,38.85899015,233.7,233.69,1e-08]
[1757953027977,17.874218,233.72,233.69,1e-08]
[1757953028156,34.58,233.71,233.69,1e-08]
[1757953028581,35.26,233.71,233.69,1e-08]
[1757953028774,4.27899015,233.7,233.69,1e-08]
[1757953029494,38.85899015,233.7,233.69,1e-08]
[1757953029782,39.53899015,233.7,233.69,1e-08]
[1757953029976,42.72786504,233.7,233.69,1e-08]
[1757953030682,56.32345905,233.7,233.69,1e-08]
[1757953031481,56.32345905,233.7,233.67,0.06]
[1757953031482,13.59559401,233.69,233.67,1e-08]
[1757953031692,3.18887489,233.68,233.67,1e-08]
[1757953031894,0.86887489,233.68,233.67,1e-08]
[1757953032267,61.44887489,233.68,233.67,1e-08]
[1757953032583,75.0444689,233.68,233.67,1e-08]
[1757953032985,79.32382528,233.68,233.67,1e-08]
[1757953033162,79.13495039,233.68,233.67,1e-08]
[1757953036392,43.87495039,233.68,233.67,1e-08]
[1757953036573,78.45495039,233.68,233.67,1e-08]
[1757953036777,79.13495039,233.68,233.67,1e-08]
[1757953037290,78.45495039,233.68,233.67,1e-08]
[1757953037797,79.13495039,233.68,233.67,1e-08]
[1757953037982,44.55495039,233.68,233.67,1e-08]
[1757953038182,79.13495039,233.68,233.67,1e-08]
[1757953042191,53.13495039,233.68,233.67,1e-08]
[1757953042692,26.0,233.65,233.62,0.06]
[1757953042990,13.59559401,233.63,233.62,0.06]
[1757953043391,18.55586623,233.63,233.62,0.06]
[1757953044090,17.87586623,233.63,233.62,0.06]
[1757953044282,52.45586623,233.63,233.62,0.06]
[1757953044477,17.87586623,233.63,233.62,0.06]
[1757953044689,52.45586623,233.63,233.62,0.06]
[1757953044890,53.13586623,233.63,233.62,0.06]
[1757953045793,53.13586623,233.63,233.61,0.1]
[1757953045989,14.27559401,233.62,233.61,1e-08]
[1757953046192,48.17559401,233.62,233.61,1e-08]
[1757953046494,74.17559401,233.62,233.61,0.71000001]
[1757953046795,74.17559401,233.62,233.61,1e-08]
[1757953047892,78.45604945,233.62,233.61,1e-08]
[1757953049588,79.13604945,233.62,233.61,1e-08]
[1757953050118,82.31649301,233.62,233.61,1e-08]
[1757953050875,13.59559401,233.57,233.55,0.2]
[1757953051095,52.45714907,233.56,233.55,0.2]
[1757953051605,38.86155506,233.56,233.55,0.91]
[1757953052700,38.86155506,233.56,233.55,0.2]
[1757953054701,53.17714907,233.56,233.55,0.2]
[1757953055091,52.45714907,233.56,233.55,0.2]
[1757953055483,39.59559401,233.52,233.51,0.2]
[1757953055789,74.17559401,233.52,233.51,1e-08]
[1757953055987,78.45788246,233.52,233.51,1e-08]
[1757953058215,65.58228845,233.52,233.5,1e-08]
[1757953058433,13.59559401,233.51,233.5,1e-08]
[1757953058907,48.17559401,233.51,233.5,1e-08]
[1757953059115,48.89559401,233.51,233.5,1e-08]
[1757953059414,39.59559401,233.45,233.44,1e-08]
[1757953059709,13.59559401,233.44,233.43,1e-08]
[1757953060188,17.87935,233.44,233.43,1e-08]
[1757953060609,52.45935,233.44,233.43,0.72000001]
[1757953061086,52.45935,233.44,233.43,1e-08]
[1757953061292,53.17935,233.44,233.43,1e-08]
[1757953061914,52.45935,233.44,233.43,1e-08]
[1757953062516,53.17935,233.44,233.43,1e-08]
[1757953062715,52.45935,233.44,233.43,1e-08]
[1757953063826,52.47935,233.44,233.43,1e-08]
[1757953064609,53.19935,233.44,233.43,1e-08]
[1757953066101,56.37615165,233.44,233.43,1e-08]
[1757953066403,56.37598386,233.44,233.43,1e-08]
[1757953066906,55.65598386,233.44,233.43,1e-08]
[1757953067111,52.47935,233.44,233.43,1e-08]
[1757953069893,53.18935,233.44,233.43,1e-08]
[1757953070895,17.87935,233.44,233.43,1e-08]
[1757953071115,64.88375599,233.44,233.43,0.66000001]
[1757953073819,64.91375599,233.44,233.43,0.66000001]
[1757953075225,66.61375599,233.44,233.43,0.66000001]
[1757953076212,1.73,233.44,233.43,0.66000001]
[1757953076515,1.73,233.44,233.43,2.4368869]
[1757953077523,6.01375599,233.44,233.43,2.4368869]
[1757953077721,1.73,233.44,233.43,2.4368869]
[1757953079024,1.73,233.44,233.43,6.72082641]
[1757953079600,0.03,233.44,233.43,6.72082641]
[1757953080218,0.03,233.44,233.43,2.4368869]
[1757953080723,0.03,233.44,233.43,6.72082641]
[1757953081325,0.03,233.44,233.43,2.4368869]
[1757953082128,0.03,233.44,233.43,1e-08]
[1757953082506,0.03,233.44,233.43,0.70000001]
[1757953083830,0.03,233.44,233.43,1e-08]
[1757953090910,0.75,233.44,233.43,1e-08]
[1757953092020,0.03,233.44,233.43,1e-08]
[1757953092932,0.03,233.44,233.43,0.70000001]
[1757953094412,0.03,233.44,233.43,4.98393952]
[1757953095018,0.03,233.44,233.43,26.70000001]
[1757953095346,0.03,233.44,233.43,30.98393952]
[1757953095641,0.03,233.44,233.43,4.98393952]
[1757953096210,0.03,233.47,233.43,4.98393952]
[1757953096211,0.03,233.47,233.46,26.0]
[1757953096546,0.03,233.47,233.46,27.77688689]
[1757953096834,0.03,233.47,233.46,2.47688689]
[1757953097333,0.03,233.47,233.46,0.7]
[1757953097524,0.03,233.47,233.46,2.47688689]
[1757953098112,0.03,233.47,233.46,6.7602759]
[1757953102638,0.03,233.47,233.46,2.47688689]
[1757953102938,0.03,233.47,233.43,1e-08]
[1757953102939,0.75,233.47,233.43,1e-08]
[1757953103122,0.72,233.46,233.43,1e-08]
[1757953103631,0.72,233.45,233.43,1e-08]
[1757953104141,0.72,233.44,233.43,1e-08]
[1757953104344,0.03,233.47,233.43,1e-08]
[1757953104525,0.72,233.44,233.43,1e-08]
[1757953105821,14.31559401,233.44,233.43,1e-08]
[1757953106625,18.59935,233.44,233.43,1e-08]
[1757953106819,21.79336343,233.44,233.43,1e-08]
[1757953107142,21.79336343,233.44,233.38,0.06]
[1757953107143,13.59559401,233.4,233.38,0.06]
[1757953107527,0.72,233.39,233.38,0.06]
[1757953108349,5.00467372,233.39,233.38,0.06]
[1757953111231,18.60026773,233.39,233.38,0.06]
[1757953112430,5.00467372,233.39,233.38,0.06]
[1757953116532,15.71635802,233.39,233.35,0.06]
[1757953116738,15.71635802,233.39,233.3,0.06]
[1757953116739,147.89559401,233.38,233.3,0.06]
[1757953117060,13.59559401,233.36,233.3,0.06]
[1757953117566,0.71,233.35,233.3,0.06]
[1757953117744,15.00021428,233.33,233.3,0.06]
[1757953117952,0.71,233.32,233.3,0.06]
[1757953118459,0.71,233.31,233.3,0.06]
[1757953119060,4.9961429,233.31,233.3,0.06]
[1757953119761,4.2861429,233.31,233.3,0.06]
[1757953120184,4.9961429,233.31,233.3,0.06]
[1757953122080,0.71,233.31,233.3,0.06]
[1757953123562,135.01,233.31,233.3,0.06]
[1757953124145,139.2961429,233.31,233.3,0.06]
[1757953125567,138.5861429,233.31,233.3,0.06]
[1757953126866,139.2961429,233.31,233.3,0.06]
[1757953127469,138.5861429,233.31,233.3,0.06]
[1757953128147,139.2961429,233.31,233.3,0.06]
[1757953128669,173.8161429,233.31,233.3,0.06]
[1757953131183,139.2961429,233.31,233.3,0.06]
[1757953133663,152.89173691,233.31,233.3,0.06]
[1757953134550,147.89559401,233.3,233.27,0.06]
[1757953134749,13.59559401,233.28,233.27,0.06]
[1757953135275,14.26559401,233.28,233.27,0.06]
[1757953135647,18.55228811,233.28,233.27,0.06]
[1757953137755,29.26902336,233.28,233.25,0.06]
[1757953138084,13.59559401,233.26,233.25,0.06]
[1757953138575,14.26559401,233.26,233.25,0.06]
[1757953140170,18.55265565,233.26,233.25,0.06]
[1757953141195,134.3,233.27,233.25,3.55037438]
[1757953141487,134.3,233.27,233.26,2.78037438]
[1757953141694,134.3,233.27,233.26,0.71]
[1757953142059,138.58687786,233.27,233.26,0.71]
[1757953142884,138.58687786,233.27,233.25,0.06]
[1757953143473,134.3,233.27,233.26,0.66]
[1757953144296,138.58687786,233.27,233.26,0.66]
[1757953144596,138.58687786,233.27,233.25,0.06]
[1757953144783,138.58687786,233.27,233.25,0.72]
[1757953146389,134.3,233.27,233.26,0.66]
[1757953146690,134.3,233.27,233.26,3.44037438]
[1757953147069,4.28642012,233.3,233.26,3.44037438]
[1757953147372,4.28642012,233.3,233.28,2.78037438]
[1757953147579,4.28613344,233.32,233.29,0.66]
[1757953147779,4.28613344,233.32,233.3,0.66]
[1757953148572,0.03,233.32,233.3,3.44037438]
[1757953148774,0.03,233.32,233.31,0.66]
[1757953149077,0.03,233.32,233.31,3.44037438]
[1757953150381,0.03,233.32,233.31,0.66]
[1757953150693,0.03,233.32,233.3,2.78037438]
[1757953150992,0.03,233.32,233.27,0.66]
[1757953151195,0.03,233.32,233.29,2.78037438]
[1757953151372,0.03,233.32,233.29,3.44037438]
[1757953151577,0.03,233.32,233.3,0.66]
[1757953152681,0.72,233.31,233.26,0.06]
[1757953152994,0.72,233.3,233.26,0.06]
[1757953153180,35.2,233.3,233.26,0.06]
[1757953153381,3.91823101,233.29,233.26,0.06]
[1757953153785,0.72,233.28,233.26,0.06]
[1757953154088,35.2,233.28,233.26,0.06]
[1757953154292,14.31559401,233.27,233.26,0.06]
[1757953154687,18.60247187,233.27,233.26,0.06]
[1757953155497,21.79951495,233.27,233.26,0.06]
[1757953155699,21.79951495,233.27,233.26,1e-08]
[1757953155900,26.0,233.25,233.24,0.06]
[1757953156074,63.67704308,233.25,233.24,0.06]
[1757953156280,64.39704308,233.25,233.24,0.06]
[1757953156689,68.68428852,233.25,233.24,1e-08]
[1757953158304,13.59559401,233.24,233.18,0.06]
[1757953158504,79.40240213,233.25,233.18,0.06]
[1757953158505,13.59559401,233.22,233.18,0.06]
[1757953158704,37.67704308,233.21,233.18,0.06]
[1757953158886,42.68502386,233.21,233.18,0.06]
[1757953159891,39.59559401,233.18,233.14,0.2]
[1757953160099,13.59559401,233.16,233.14,0.2]
[1757953160293,51.27263709,233.15,233.14,0.2]
[1757953161178,55.56172137,233.15,233.14,0.2]
[1757953161381,13.59559401,233.14,233.12,0.06]
[1757953161602,48.07559401,233.13,233.12,0.06]
[1757953161878,48.79559401,233.13,233.12,0.06]
[1757953162083,26.0,233.12,233.02,0.86]
[1757953162305,51.26490996,233.11,233.03,0.66]
[1757953162603,48.07559401,233.11,233.03,0.66]
[1757953163185,15.01630341,233.08,233.02,0.2]
[1757953163386,34.48,233.07,233.02,0.2]
[1757953163787,14.31559401,233.06,233.02,0.2]
[1757953163982,34.48,233.07,233.02,0.2]
[1757953163983,13.59559401,233.07,233.02,0.2]
[1757953164194,13.59559401,233.07,233.03,0.66]
[1757953164383,35.2,233.06,233.02,0.2]
[1757953164911,26.0,233.03,233.02,0.2]
[1757953165100,60.48,233.03,233.02,0.2]
[1757953165293,38.77129296,233.03,233.02,0.2]
[1757953165504,53.08688697,233.03,233.02,0.2]
[1757953167306,4.29092541,233.05,233.02,0.2]
[1757953167512,38.77092541,233.05,233.02,0.86]
[1757953168007,38.77092541,233.05,233.02,0.2]
[1757953168210,39.49092541,233.05,233.02,0.2]
[1757953168510,38.77092541,233.05,233.02,0.2]
[1757953169492,0.72,233.04,233.02,0.2]
[1757953169791,48.79559401,233.03,233.02,0.2]
[1757953171614,53.08688697,233.03,233.02,0.2]
[1757953171823,4.29129296,233.03,233.02,0.92]
[1757953172023,48.07559401,233.06,233.02,0.92]
[1757953172240,34.48,233.06,233.03,0.72]
[1757953172796,34.48,233.06,233.02,0.2]
[1757953173525,35.13,233.06,233.02,0.2]
[1757953173697,34.48,233.06,233.02,0.2]
[1757953173903,15.66823642,233.05,233.02,0.2]
[1757953174511,4.94092469,233.05,233.02,0.2]
[1757953174711,34.48,233.06,233.02,0.92]
[1757953174914,38.77079343,233.06,233.02,0.92]
[1757953175428,38.77079343,233.06,233.02,0.2]
[1757953175600,0.65,233.05,233.02,0.2]
[1757953175928,4.29129296,233.03,233.02,0.2]
[1757953176842,53.01688697,233.03,233.02,0.2]
[1757953177010,53.01688697,233.03,233.02,1e-08]
[1757953179827,39.59559401,233.0,232.99,1e-08]
[1757953180031,13.59559401,232.99,232.89,0.72]
[1757953180332,13.59559401,232.97,232.89,0.72]
[1757953180510,13.59559401,232.95,232.89,0.72]
[1757953180711,34.46,232.94,232.89,0.72]
[1757953181609,15.02597346,232.93,232.89,0.72]
[1757953181805,15.02597346,232.93,232.86,5.05975088]
[1757953182031,15.02597346,232.93,232.85,26.0]
[1757953182032,34.46,232.92,232.88,4.33975088]
[1757953182228,34.46,232.92,232.89,0.72]
[1757953182425,13.59559401,232.95,232.89,0.72]
[1757953182426,41.45517196,233.05,232.9,0.72]
[1757953182736,13.59559401,232.98,232.93,4.33975088]
[1757953183032,13.59559401,232.98,232.94,0.72]
[1757953183333,34.46,232.99,232.96,4.33975088]
[1757953183515,34.46,232.99,232.86,26.0]
[1757953183720,4.29221392,232.98,232.97,0.72]
[1757953186231,4.29221392,232.98,232.95,4.33975088]
[1757953186537,4.29221392,232.98,232.93,5.05975088]
[1757953186710,15.02274872,232.98,232.94,0.72]
[1757953187638,15.02274872,232.98,232.91,4.33975088]
[1757953187825,15.02274872,232.98,232.92,0.72]
[1757953188232,15.02274872,232.98,232.92,5.05975088]
[1757953189035,15.02274872,232.98,232.92,0.72]
[1757953189522,13.59559401,232.97,232.9,0.72]
[1757953189822,34.46,232.96,232.9,0.72]
[1757953190032,34.46,232.96,232.88,4.39975088]
[1757953190033,13.59559401,232.95,232.88,0.06]
[1757953190539,15.6753284,232.94,232.88,0.06]
[1757953190737,34.46,232.93,232.88,0.06]
[1757953191148,14.24559401,232.92,232.88,0.06]
[1757953191521,0.65,232.91,232.88,0.06]
[1757953191720,13.59559401,232.92,232.88,0.06]
[1757953191721,35.11,232.9,232.88,0.06]
[1757953192338,4.29387264,232.89,232.88,0.06]
[1757953193656,34.46,232.9,232.88,0.78]
[1757953193824,34.46,232.9,232.88,0.06]
[1757953194229,4.29379773,232.9,232.88,0.06]
[1757953196543,38.75345019,232.92,232.89,0.67]
[1757953196928,13.59559401,232.96,232.9,5.00975088]
[1757953197129,34.46,232.96,232.91,5.00975088]
[1757953197329,13.59559401,232.97,232.92,0.67]
[1757953197528,48.05559401,232.97,232.93,0.67]
[1757953197764,13.59559401,232.97,232.93,0.67]
[1757953197955,48.05559401,232.97,232.93,0.67]
[1757953198457,15.02274872,232.98,232.93,0.67]
[1757953198458,38.75221392,232.98,232.94,0.67]
[1757953198948,39.42221392,232.98,232.92,4.33975088]
[1757953199148,38.75221392,232.98,232.92,5.00975088]
[1757953199353,38.75221392,232.98,232.93,4.33975088]
[1757953199532,38.75221392,232.98,232.94,5.00975088]
[1757953200141,38.75221392,232.98,232.95,0.67]
[1757953200344,0.67,232.97,232.92,0.67]
[1757953200752,38.75221392,232.98,232.92,0.67]
[1757953200958,49.48274872,232.98,232.92,0.67]
[1757953201144,0.67,232.97,232.88,0.73]
[1757953201457,13.59559401,232.96,232.89,26.0]
[1757953201632,35.13,232.95,232.89,26.0]
[1757953201833,35.13,232.95,232.89,4.33975088]
[1757953202037,13.59559401,232.97,232.9,0.66]
[1757953202240,34.44,232.96,232.9,0.66]
[1757953202466,14.28559401,232.97,232.9,0.66]
[1757953202786,4.29074673,233.06,232.99,26.0]
[1757953202935,0.69,233.09,233.0,0.66]
[1757953203257,0.69,233.09,232.92,0.06]
[1757953203258,0.69,233.08,232.97,0.66]
[1757953203555,13.59559401,233.07,232.94,4.99975088]
[1757953203735,13.59559401,233.05,232.94,4.99975088]
[1757953203930,13.59559401,233.03,232.94,4.33975088]
[1757953204132,13.62559401,233.01,232.92,4.39975088]
[1757953204358,0.69,233.0,232.92,4.39975088]
[1757953204574,13.59559401,232.98,232.94,4.33975088]
[1757953204736,4.29239816,232.97,232.94,4.33975088]
[1757953204938,13.62559401,233.01,232.95,4.99975088]
[1757953205132,0.03,233.01,232.97,4.33975088]
[1757953205361,0.03,233.01,232.97,4.99975088]
[1757953205556,0.03,233.01,232.99,4.33975088]
[1757953206450,4.32168196,233.01,232.99,4.33975088]
[1757953206658,0.69,233.0,232.97,4.33975088]
[1757953206964,4.2920297,232.99,232.97,4.33975088]
[1757953207856,4.2920297,232.99,232.97,4.99975088]
[1757953208168,4.2920297,232.99,232.97,4.33975088]
[1757953208542,4.2920297,232.99,232.96,4.33975088]
[1757953208767,10.75915325,233.01,232.97,4.33975088]
[1757953208768,4.3216613,233.01,232.97,4.33975088]
[1757953208967,0.03,233.01,232.98,4.33975088]
[1757953209151,0.03,233.01,232.99,4.33975088]
[1757953209462,0.03,233.01,232.94,0.66]
[1757953209668,0.03,233.01,232.97,4.33975088]
[1757953209872,0.03,233.01,232.98,4.33975088]
[1757953210071,0.72,233.01,232.97,4.33975088]
[1757953210574,0.03,233.01,232.98,4.33975088]
[1757953210750,4.29184549,233.0,232.95,26.0]
[1757953211076,4.29184549,233.0,232.97,4.33975088]
[1757953211741,0.69,232.99,232.95,4.33975088]
[1757953211962,0.69,232.98,232.93,4.33975088]
[1757953212678,15.02145922,233.0,232.95,4.33975088]
[1757953212855,10.72961373,233.0,232.95,4.99975088]
[1757953213655,4.3216613,233.01,232.98,4.33975088]
[1757953214170,4.3216613,233.01,232.98,4.99975088]
[1757953214372,4.3216613,233.01,232.98,4.33975088]
[1757953214560,4.3216613,233.01,232.98,4.99975088]
[1757953214877,4.3216613,233.01,232.96,4.33975088]
[1757953214878,11.44915325,233.01,232.96,4.33975088]
[1757953215076,11.44915325,233.01,232.95,4.33975088]
[1757953215286,10.75915325,233.01,232.96,4.99975088]
[1757953215578,0.69,233.0,232.96,4.33975088]
[1757953215777,10.75915325,233.01,232.96,4.33975088]
[1757953216076,10.75915325,233.01,232.97,4.99975088]
[1757953216659,0.03,233.01,232.97,4.99975088]
[1757953217061,0.03,233.01,232.96,4.33975088]
[1757953217258,0.72,233.01,232.96,4.33975088]
[1757953217460,0.72,233.01,232.96,4.99975088]
[1757953218062,4.29184549,233.0,232.96,0.66]
[1757953218384,4.29184549,233.0,232.97,0.66]
[1757953218564,4.29184549,233.0,232.96,4.33975088]
[1757953218873,15.02145922,233.0,232.96,0.66]
[1757953219260,4.29184549,233.0,232.97,0.66]
[1757953219455,4.32168571,233.01,232.98,0.66]
[1757953219788,4.32168571,233.01,233.0,4.33975088]
[1757953219789,0.03,233.01,233.0,4.33975088]
[1757953219966,0.03,233.01,233.0,4.99975088]
[1757953220470,4.29000429,233.1,233.0,9.29159637]
[1757953220661,4.29000429,233.1,233.08,4.33975088]
[1757953220863,4.29000429,233.1,233.07,4.33975088]
[1757953221063,0.69,233.09,233.05,4.33975088]
[1757953221263,15.01501501,233.1,233.06,4.33975088]
[1757953221462,15.01501501,233.1,233.07,4.33975088]
[1757953222583,4.29000429,233.1,233.08,0.66]
[1757953222809,4.29000429,233.1,233.07,4.33975088]
[1757953222970,4.29000429,233.1,233.06,4.33975088]
[1757953222971,4.98000429,233.1,233.06,4.33975088]
[1757953223485,4.2898388,233.11,233.07,4.33975088]
[1757953223682,0.69,233.1,233.04,0.66]
[1757953223870,4.2898388,233.11,233.06,4.33975088]
[1757953224068,4.9798388,233.11,233.06,4.33975088]
[1757953224271,0.03,233.1,233.06,4.33975088]
[1757953224469,0.03,233.1,233.08,4.33975088]
[1757953224859,0.03,233.1,233.08,4.99975088]
[1757953225055,0.03,233.1,233.08,4.33975088]